Cogmind - Beta 13 @@@ ROGUE MODE // 2024.08.03 @ 00:55:46 Player: jagoly Result: Destroyed by G-34 Mercenary with Small Laser Performance ------------- Evolutions (0) 0 Regions Visited (1) 200 Robots Destroyed (16) 80 Value Destroyed (240) 240 Prototype IDs (2) 40 Alien Tech Used (0) 0 Bonus (0) 0 TOTAL SCORE: 560 Bonus ------- None Cogmind --------- Core Integrity 0/250 Matter 290/300 Energy 250/250 System Corruption 0% Temperature Cool (24) Movement Treading (160) Location -10/Materials Parts ------- > --- POWER (1) -------- Ion Engine > --- PROPULSION (2) --- Light Treads Light Treads > --- UTILITY (2) ------ Large Storage Unit Targeting Computer > --- WEAPON (2) ------- Beam Cannon Assault Rifle > --- INVENTORY (15) --- Ion Engine Light Treads Light Treads Large Storage Unit High-capacity Storage Unit High-capacity Matter Pod (0) Hacking Suite Beam Cannon Assault Rifle Rocket Launcher Rocket Launcher Peak State ------------ > --- POWER ------------ Light Ion Engine > --- PROPULSION ------- Light Treads Light Treads > --- UTILITY ---------- Large Storage Unit Targeting Computer > --- WEAPON ----------- Beam Cannon Light Assault Rifle > --- INVENTORY -------- Light Treads Wheel Compact Wheel Large Storage Unit High-capacity Storage Unit High-capacity Matter Pod Hacking Suite Rocket Launcher [Rating: 8] Favorites ----------- Power Light Ion Engine Engine Light Ion Engine Propulsion Light Treads Treads Light Treads Leg Aluminum Leg Wheel Compact Wheel Utility Targeting Computer Device Structural Scanner Storage Large Storage Unit Processor Targeting Computer Weapon Beam Cannon Energy Gun Medium Laser Energy Cannon Beam Cannon Ballistic Gun Light Assault Rifle Build | -11 -10 ------- Run | Yrd Mat Slots Evolved . | . . Power . | . . Propulsion . | . . Utility . | . . Weapon . | . . Parts Attached 25 | 6 19 Power 3 | 1 2 Engine 3 | 1 2 Core . | . . Reactor . | . . Propulsion 9 | 2 7 Treads 5 | . 5 Leg 2 | 2 . Wheel 2 | . 2 Hover . | . . Flight . | . . Utility 5 | 1 4 Device 1 | . 1 Storage 3 | 1 2 Processor 1 | . 1 Hackware . | . . Protection . | . . Artifact . | . . Weapon 8 | 2 6 Energy Gun 2 | 2 . Energy Cannon 2 | . 2 Ballistic Gun 4 | . 4 Ballistic Cannon . | . . Launcher . | . . Special Weapon . | . . Impact Weapon . | . . Slashing Weapon . | . . Piercing Weapon . | . . Special Melee Weapon . | . . Unidentified Prototypes . | . . Parts Lost 7 | . 7 Power 1 | . 1 Propulsion 2 | . 2 Utility 1 | . 1 Weapon 3 | . 3 Highest Loss Streak 6 | . 6 To Critical Strikes . | . . Average Slot Usage (%) 93 | . 93 Engine 12 | . 12 Treads 20 | . 20 Leg 4 | . 4 Wheel 2 | . 2 Device 1 | . 1 Storage 15 | . 15 Processor 9 | . 9 Energy Gun 4 | . 4 Energy Cannon 10 | . 10 Ballistic Gun 11 | . 11 Naked Turns . | . . Heaviest Build 52 | 12 52 Greatest Support 40 | 20 40 Greatest Overweight (x) 4 | . 4 Average Overweight (x) . | . . Largest Inventory Capacity 20 | 8 20 Average Capacity 14 | 6 14 Most Carried 11 | 3 11 Average Carried 5 | 2 5 Final Capacity 15 | 8 15 Final Carried 11 | 3 11 Class Distribution -------------------- 100% | Mutant Dominant Class ---------------- Mutant | -10/Materials Resources | -11 -10 ----------- Run | Yrd Mat Matter Collected 456 | 111 345 Remotely . | . . Salvage Created 457 | . 457 Parts 35 | . 35 Haulers Intercepted 2 | . 2 Recyclers Shooed 3 | . 3 Parts Field Recycled . | . . Retrieved Matter . | . . Parts Self-Destructed . | . . Prevented . | . . Kills | -11 -10 ------- Run | Yrd Mat Combat Hostiles Destroyed 8 | . 8 Guns 4 | . 4 Cannons 3 | . 3 Classes Destroyed 7 | . 7 Worker 1 | . 1 Hauler 2 | . 2 Recycler 1 | . 1 Operator 1 | . 1 Watcher 3 | . 3 Swarmer 5 | . 5 Grunt 3 | . 3 Best Kill Streak 5 | . 5 Combat Bots Only 3 | . 3 Max Kills in Single Turn 1 | . 1 Gunslinging . | . . Exploded . | . . Melee . | . . Uniques/NPCs Destroyed . | . . Combat | -11 -10 -------- Run | Yrd Mat Hostile Shots Fired 106 | . 106 Missed 13 | . 13 Damage Taken 857 | . 857 Core 253 | . 253 Absorbed by Shields . | . . Regen/Repaired (Parts) 45 | . 45 Core Remaining (%) 100 | 100 . Volleys Fired 80 | . 80 Largest 2 | . 2 Hottest 100 | . 100 Shots Fired 106 | . 106 Gun 81 | . 81 Cannon 25 | . 25 Launcher . | . . Special . | . . Kinetic 37 | . 37 Thermal 69 | . 69 Explosive . | . . Electromagnetic . | . . Robot Hit Streak 8 | . 8 Robot Miss Streak 23 | . 23 Penetration Max . | . . Secondary Targets . | . . Shots Hit Robots 48 | . 48 Core Hits 21 | . 21 Critical Kills . | . . Critical Parts Destroyed . | . . Critical Strikes 3 | . 3 Burn 3 | . 3 Melee Attacks . | . . Impact . | . . Slashing . | . . Piercing . | . . Sneak Attacks . | . . Combat Hostiles . | . . Follow-up Attacks . | . . Damage Inflicted 669 | . 669 Guns 370 | . 370 Cannons 299 | . 299 Explosions . | . . Melee . | . . Ramming . | . . Kinetic 143 | . 143 Thermal 526 | . 526 Explosive . | . . Electromagnetic . | . . Impact . | . . Slashing . | . . Piercing . | . . Highest Corruption . | . . Average Corruption . | . . Corruption Purged . | . . Corruption Blocked . | . . Overload Shots . | . . Overflow Damage . | . . Projectiles . | . . Explosions . | . . Melee . | . . Knockbacks . | . . Impact . | . . Kinetic . | . . Secondary . | . . Self-Inflicted Damage . | . . Shots . | . . Rammed . | . . Targets Rammed . | . . Kicked . | . . Crushed . | . . Highest Temperature 511 | . 511 Average Temperature 184 | . 184 Received Heat Transfer 210 | . 210 Effects 14 | . 14 Shutdowns 1 | . 1 Energy Bleed 5 | . 5 Interference 3 | . 3 Damage (minor) 1 | . 1 Damage (major) 4 | . 4 Siege Activations . | . . Robots Corrupted . | . . Combat Hostiles . | . . Parts Fried . | . . Impact Corruptions . | . . Robots Melted 1 | . 1 Combat Hostiles 1 | . 1 Parts Melted 2 | . 2 Heat Transferred 1517 | . 1517 Parts Sabotaged . | . . Parts Stolen . | . . Parts Stripped . | . . Power Chain Reactions . | . . Alert | -11 -10 ------- Run | Yrd Mat Peak Influence 121 | . 121 Initial . | . . Average 54 | . 57 Maximum Alert Level . | . . Low Security (%) 100 | 100 100 Level 1 . | . . Level 2 . | . . Level 3 . | . . Level 4 . | . . Level 5 . | . . High Security . | . . Max Security . | . . Squads Dispatched 2 | . 2 Investigation 1 | . 1 Extermination . | . . Reinforcement 1 | . 1 Assault . | . . Garrison . | . . Intercept . | . . Searches Triggered . | . . Construction Impeded . | . . Haulers Reinforced . | . . Active Scanning Responses . | . . Cargo Convoy Interrupts . | . . Stealth | -11 -10 --------- Run | Yrd Mat Distress Signals 1 | . 1 Communications Jammed . | . . Distress Signals . | . . Times Spotted 16 | . 16 Peak Tracking Total 5 | . 5 Tactical Retreats 1 | . 1 Traps | -11 -10 ------- Run | Yrd Mat Traps Triggered 1 | . 1 Indirectly . | . . Trap Hack Attempts . | . . Triggered . | . . Disarmed . | . . Reprogrammed . | . . Reused . | . . Traps Extracted . | . . Installed . | . . Triggered . | . . Machines | -11 -10 ---------- Run | Yrd Mat Machines Disabled . | . . Max in Single Turn . | . . Machines Repaired . | . . Machines Dismantled . | . . Machines Sabotaged . | . . Overloaded Fab Kills . | . . Hacking | -11 -10 --------- Run | Yrd Mat Machines Accessed 6 | . 6 Terminals 4 | . 4 Fabricators . | . . Repair Stations 1 | . 1 Recycling Units 1 | . 1 Scanalyzers . | . . Garrison Access . | . . Total Hacks 19 | . 19 Successful 6 | . 6 Failed 13 | . 13 Catastrophic 2 | . 2 Database Lockouts . | . . Manual 10 | . 10 Terminals 13 | . 13 Fabricators . | . . Repair Stations 4 | . 4 Recycling Units 2 | . 2 Scanalyzers . | . . Garrison Access . | . . Terminal Hacks 3 | . 3 Prototype ID Bank 1 | . 1 Terminal Index 1 | . 1 Locate Traps 1 | . 1 Fabricator Hacks . | . . Repair Station Hacks 2 | . 2 Scan Component 1 | . 1 Repair 1 | . 1 Recycling Unit Hacks . | . . Scanalyzer . | . . Garrison Access Hacks . | . . Unauthorized Hacks 1 | . 1 Terminals . | . . Fabricators . | . . Repair Stations . | . . Recycling Units 1 | . 1 Tunnel 1 | . 1 Scanalyzers . | . . Garrison Access . | . . Data Cores Recovered . | . . Used . | . . Hacking Detections 6 | . 6 Full Trace Events . | . . Feedback Events . | . . Feedback Blocked . | . . Robot Schematics Acquired . | . . Robots Built . | . . Authchips . | . . Time . | . . Total Robot Build Rating . | . . Part Schematics Acquired . | . . Parts Built . | . . Authchips . | . . Time . | . . Total Part Build Rating . | . . Parts Repaired 1 | . 1 Time 26 | . 26 Parts Recycled . | . . Recycled Matter . | . . Retrieved Matter . | . . Retrieved Components . | . . Parts Scanalyzed . | . . Part Schematics Acquired . | . . Parts Damaged . | . . Bothacking | -11 -10 ------------ Run | Yrd Mat Used RIF Installer . | . . Robots Hacked . | . . Non-combat . | . . Combat . | . . Robot Hacks Applied . | . . Relay Couplers Released . | . . Fabnet Peak Effective % . | . . Robots Rewired . | . . Allies Hacked . | . . Hacks Repelled . | . . Allies | -11 -10 -------- Run | Yrd Mat Total Allies . | . . Largest Group . | . . Highest-Rated Group . | . . Highest-Rated Ally . | . . Total Orders . | . . Ally Attacks . | . . Total Damage . | . . Kills . | . . Allies Corrupted . | . . Allies Melted . | . . Intel | -11 -10 ------- Run | Yrd Mat Robot Analysis Total . | . . Derelict Logs Recovered . | . . Drone Launches . | . . Drone Recoveries . | . . Exploration | -11 -10 ------------- Run | Yrd Mat Turns Passed 1108 | 58 1050 Spaces Moved 546 | 41 505 Core 3 | 3 . Treads 362 | . 362 Legs 96 | 38 58 Wheels 85 | . 85 Hover . | . . Flight . | . . Fastest Speed 50 | 50 120 Average Speed 152 | 114 155 Slowest Speed 320 | 120 320 Overloaded Moves . | . . Propulsion Burnouts . | . . Robots Hopped . | . . Cave-ins Triggered . | . . Exploration Rate (%) 40 | 4 76 Regions Visited 1 Branch Regions . Pre-discovered Areas 1 | . 1 Known Exits Taken . | . . Unknown Exits Taken 1 | 1 . Scrap Searched . | . . Spaces Dug . | . . Terrain Destroyed . | . . Melee . | . . Projectile . | . . AOE . | . . Terrain Rammed . | . . Walls Destroyed . | . . Machines Disabled . | . . Actions | -11 -10 --------- Run | Yrd Mat Total 722 | 49 673 Wait 41 | . 41 Move 545 | 40 505 Hop . | . . Pick Up 18 | 3 15 Fast Attach 17 | 6 11 Attach 8 | . 8 Detach 7 | . 7 Swap . | . . Drop 6 | . 6 Fire 80 | . 80 Melee . | . . Ram . | . . Kick . | . . Crush . | . . Escape Stasis . | . . Rewire . | . . Trap . | . . Miscellaneous . | . . Route ------- -11/Scrapyard -10/Materials (discovered 2 exits: [*Mat] / [*Min]) History --------- Turn | Location | Event 2 | -11/Scrapyard | Discovered new exit (range 16) 59 | -11/Scrapyard | Entered Materials 232 | -10/Materials | Core integrity fell below 50% 254 | -10/Materials | Lost 6 parts (1p2n1u2w) 312 | -10/Materials | Build established: Mutant 398 | -10/Materials | Discovered new exit (range 8) 598 | -10/Materials | Core integrity fell below 20% 707 | -10/Materials | Discovered new exit (range 9) 799 | -10/Materials | Repaired Lgt. Treads 1109 | -10/Materials | Destroyed by G-34 Mercenary with Small Laser Last Messages --------------- 01011_ Dropped Lgt. Ion Engine. 01011_ R-06 Scavenger collects Lgt. Assault Rifle. 01011_ Acquired Ion Engine. 01014_ R-06 Scavenger collects Lrg. Matter Pod. 01016_ K-01 Serf cleans the Pressure Siphon. 01031_ T-07 Excavator is excavating. 01045_ W-16 Scout destroyed. 01047_ K-01 Serf collects debris. 01048_ Acquired 23 matter. 01051_ K-01 Serf collects debris. 01068_ Connecting with Terminal... 01072_ Acquired Beam Cannon. 01091_ Connecting with Recycling Unit... >>Force(Tunnel) DISCOVERED[-9/Recycling] 01091_ ALERT: Suspicious activity at Recycling Unit M001. Dispatching Investigation squad. 01102_ W-16 Scout sends out distress signal. 01102_ W-16 Scout destroyed. 01105_ Acquired 12 matter. Map ----- +----------------------------------------------------+ | | | | | | | | | | | | | | | | | | | | | | | | | | | | | | | | | | | | | | | ?????????????????????????????????????????????????? | | ?????????????????????????????????????????????????? | | ?????????????????????????????????????????????????? | | ???????????##################????????????????????? | | ?????????? #????????????????????? | | ?????????? g = #?????????##?????????? | | ?????????? !@= #????????? ##????????? | | ?????????????????########* #????????? ?????????? | | ?????????????????# # ########## ##????????? | | ?????????????????# # # ## #????????? | | ?????????????????# " " + + T ## #????????? | | ?????????????????# "Y" # # + #????????? | | ?????????????????# """ # #[*! ## ########## | | ?????????????????# !# #[* ! ## # # | | ?????????????????######## #*! ## # # | | ????????????????????????# ######### # # | | ????????????????????????# #???????# # # | | ????????????????????????# #???????# # # | | ????????????????????????# #???????# # [ # | | ????????????????????????#r #???????# / # | | ???????????????????????## #??????##= # # | | ????????????????????#### ????#### ! # # | | ???????????????????? ######## ########## | | ??????????????????? | | ???????????????????? ! | | ???????????????????????# | | ???????????????????????## #####+## | | ????????????????????????# == * ### = | | ????????????????????##### ==| // ### ==! | | ??????????????????? = // ### | | ??????????????????? ! ### | +----------------------------------------------------+ Best States ------------- Heat Dissipation 25 Energy Generation 10 Energy Capacity 250 Matter Stores 296 Matter Capacity 300 Sight Range 16 Terrain Scan Density 10 Evasion (%) 55 Targeting Accuracy 5 Recoil Reduction 2 Item Schematics ----------------- None Robot Schematics ------------------ None Fabricated ------------ Nothing Alien Tech Used ----------------- None Achievements -------------- None Challenges ------------ None Game ------ Seed PhaseChainTreads Manual? 0 Play Time 00:12:46 Cumulative 201.7 hours Start 2024.08.03 @ 00:46:59 End 2024.08.03 @ 00:55:46 Sessions 1 Manual Loads 0 Difficulty Rogue Special Mode None Game No. 65 Rogue 65 Adventurer 0 Explorer 0 Win Type - Total 1 Types 1/0/0/0/0/0/0/0/0 Lore% 59 Gallery% 67 Achievement% 51 Wizard Run 0 Options --------- Layout 0 ASCII 0 Keyboard 1 Movement Numpad Keybinds 0 Fullscreen 1 Font 18/X11Bold Map View 76x50 Zoom Use 0% Tactical HUD 1 Map Filters NONE Filters NONE Steam 1 RUN: 4b435bad-5d9f-4bd1-b6c5-6451ae560b72